fUST/lending_fUST_20250601
["ID","MTS","AMOUNT","RATE_DAILY","PERIOD"]
[363383728,1748711447646,-430.0,0.00017808,2]
[363383729,1748711447656,-430.0,0.00017808,2]
[363383730,1748711447666,-765.34,0.00017808,2]
[363383731,1748711447675,-430.0,0.00017808,2]
[363383732,1748711447686,-430.0,0.00017808,2]
[363383733,1748711447696,-1861.82,0.00017808,2]
[363383734,1748711447707,-430.0,0.00017808,2]
[363383735,1748711447719,-1278.09,0.00017808,2]
[363383736,1748711447729,-314.653901,0.00017808,2]
[363383737,1748711447741,-430.0,0.00017808,2]
[363383738,1748711447750,-430.0,0.00017808,2]
[363383739,1748711447761,-1224.97,0.00017808,2]
[363383740,1748711447770,-314.653901,0.00017808,2]
[363383741,1748711447781,-537.5,0.00017808,2]
[363383742,1748711447791,-430.0,0.00017808,2]
[363383743,1748711447802,-430.0,0.00017808,2]
[363383744,1748711447812,-430.0,0.00017808,2]
[363383745,1748711447821,-430.0,0.00017808,2]
[363383746,1748711447831,-430.0,0.00017808,2]
[363383747,1748711447841,-450.32,0.00017808,2]
[363383748,1748711447851,-746.16,0.00017808,2]
[363383749,1748711447862,-779.61,0.00017808,2]
[363383750,1748711447872,-430.0,0.00017808,2]
[363383751,1748711447881,-824.29,0.00017808,2]
[363383752,1748711447891,-430.0,0.00017808,2]
[363383753,1748711447901,-503.82,0.00017808,2]
[363383754,1748711447909,-430.0,0.00017808,2]
[363383755,1748711447918,-430.0,0.00017808,2]
[363383756,1748711447929,-151.0,0.00017808,2]
[363383757,1748711447938,-430.0,0.00017831,2]
[363383758,1748711447949,-894.59,0.00017831,2]
[363383759,1748711447960,-270.44,0.00017831,2]
[363383760,1748711447970,-430.0,0.00017831,2]
[363383761,1748711447981,-430.0,0.00017831,2]
[363383762,1748711447992,-430.0,0.00017831,2]
[363383763,1748711448002,-430.0,0.00017831,2]
[363383764,1748711448012,-430.0,0.00017831,2]
[363383765,1748711448022,-430.0,0.00017831,2]
[363383766,1748711448033,-430.0,0.00017831,2]
[363383767,1748711448044,-444.16367049,0.00017831,2]
[363383768,1748711448055,-209.695203,0.00017831,2]
[363383769,1748711448065,-209.695203,0.00017831,2]
[363383770,1748711448076,-151.0,0.000179,2]
[363383771,1748711448088,-162.74,0.00018,2]
[363383772,1748711448099,-1643.40161787,0.00018003,2]
[363383773,1748711448110,-12664.98044988,0.00018053,2]
[363383774,1748711448121,-842.5625,0.00018053,2]
[363383775,1748711448131,-229.3428821,0.00018053,2]
[363383776,1748711448142,-423.4608169,0.00018053,2]
[363383777,1748711448152,-160.0,0.00018053,2]
[363383778,1748711448162,-160.0,0.00018053,2]
[363383779,1748711448173,-212.77096907,0.00018053,2]
[363383780,1748711448184,-160.0,0.00018075,2]
[363383781,1748711448194,-430.0,0.00018078,2]
[363383782,1748711448205,-503.32066576,0.0001808,2]
[363383783,1748711448216,-430.0,0.00018082,2]
[363383784,1748711448226,-430.0,0.00018082,2]
[363383785,1748711448236,-430.0,0.00018082,2]
[363383786,1748711448247,-151.0,0.00018082,2]
[363383787,1748711448258,-430.0,0.00018082,2]
[363383788,1748711448267,-825.12,0.00018082,2]
[363383789,1748711448277,-467.21,0.00018082,2]
[363383790,1748711448286,-151.0,0.00018082,2]
[363383791,1748711448296,-151.0,0.00018082,2]
[363383792,1748711448305,-430.0,0.00018082,2]
[363383793,1748711448316,-151.0,0.00018082,2]
[363383794,1748711448326,-177.534798,0.00018082,2]
[363383795,1748711448337,-177.534798,0.00018082,2]
[363383796,1748711448347,-627.223156,0.00018082,2]
[363383797,1748711448357,-627.223156,0.00018082,2]
[363383798,1748711448367,-546.93,0.00018082,2]
[363383799,1748711448377,-151.0,0.00018082,2]
[363383800,1748711448386,-151.0,0.00018082,2]
[363383801,1748711448398,-151.0,0.00018082,2]
[363383802,1748711448408,-151.0,0.00018082,2]
[363383803,1748711448418,-430.0,0.00018082,2]
[363383804,1748711448428,-430.0,0.00018082,2]
[363383805,1748711448438,-207.742679,0.00018082,2]
[363383806,1748711448447,-430.0,0.00018082,2]
[363383807,1748711448457,-607.07,0.00018082,2]
[363383808,1748711448466,-151.0,0.00018082,2]
[363383809,1748711448476,-193.39521467,0.00018082,2]
[363383810,1748711448486,-151.0,0.00018082,2]
[363383811,1748711448496,-199.629833,0.00018082,2]
[363383812,1748711448505,-665.76,0.00018082,2]
[363383813,1748711448514,-1495.35,0.00018082,2]
[363383814,1748711448524,-1808.07,0.00018082,2]
[363383815,1748711448534,-648.33,0.00018082,2]
[363383816,1748711448649,-252.85,0.00018082,2]
[363383817,1748711448674,-609.11,0.00018082,2]
[363383818,1748711448684,-430.0,0.00018082,2]
[363383819,1748711448696,-1984.25,0.00018082,2]
[363383820,1748711448706,-583.25,0.00018082,2]
[363383821,1748711448718,-430.0,0.00018082,2]
[363383822,1748711448728,-430.0,0.00018082,2]
[363383823,1748711448738,-1734.02,0.00018082,2]
[363383824,1748711448747,-430.0,0.00018082,2]
[363383825,1748711448758,-430.0,0.00018082,2]
[363383826,1748711448768,-2098.4,0.00018082,2]
[363383827,1748711448777,-1048.11,0.00018082,2]
[363383828,1748711448787,-430.0,0.00018082,2]
[363383829,1748711448798,-512.67,0.00018082,2]
[363383830,1748711448807,-430.0,0.00018082,2]
[363383831,1748711448817,-526.15,0.00018082,2]
[363383832,1748711448826,-430.0,0.00018082,2]
[363383833,1748711448836,-5017.28,0.00018082,2]
[363383834,1748711448847,-539.81,0.00018082,2]
[363383835,1748711448856,-1017.59,0.00018082,2]
[363383836,1748711448866,-745.59,0.00018082,2]
[363383837,1748711448876,-330.46050924,0.00018082,2]
[363383838,1748711448885,-430.0,0.00018082,2]
[363383839,1748711448895,-2361.99,0.00018082,2]
[363383840,1748711448904,-430.0,0.00018082,2]
[363383841,1748711448914,-1807.64,0.00018082,2]
[363383842,1748711448923,-430.0,0.00018082,2]
[363383843,1748711448933,-430.0,0.00018082,2]
[363383844,1748711448942,-430.0,0.00018082,2]
[363383845,1748711448953,-430.0,0.00018082,2]
[363383846,1748711448963,-430.0,0.00018082,2]
[363383847,1748711448972,-190.192189,0.00018082,2]
[363383848,1748711448981,-233.07892128,0.00018082,2]
[363383849,1748711448990,-430.0,0.00018082,2]
[363383850,1748711449000,-707.05,0.00018082,2]
[363383851,1748711449009,-442.11930906,0.00018082,2]
[363383852,1748711449019,-430.0,0.00018082,2]
[363383853,1748711449028,-554.68,0.00018082,2]
[363383854,1748711449038,-430.0,0.00018082,2]
[363383855,1748711449048,-430.0,0.00018082,2]
[363383856,1748711449057,-430.0,0.00018082,2]
[363383857,1748711449066,-765.34,0.00018082,2]
[363383858,1748711449076,-430.0,0.00018082,2]
[363383859,1748711449085,-430.0,0.00018082,2]
[363383860,1748711449095,-1861.82,0.00018082,2]
[363383861,1748711449105,-430.0,0.00018082,2]
[363383862,1748711449114,-1278.09,0.00018082,2]
[363383863,1748711449125,-430.0,0.00018082,2]
[363383864,1748711449135,-403.43755733,0.00018082,2]
[363383865,1748711449144,-1224.97,0.00018082,2]
[363383866,1748711449154,-537.5,0.00018082,2]
[363383867,1748711449163,-275.938584,0.00018082,2]
[363383868,1748711449172,-220.94,0.00018082,2]
[363383869,1748711449182,-275.938584,0.00018082,2]
[363383870,1748711449193,-430.0,0.00018082,2]
[363383871,1748711449203,-430.0,0.00018082,2]
[363383872,1748711449213,-151.0,0.00018082,2]
[363383873,1748711449223,-430.0,0.00018082,2]
[363383874,1748711449232,-450.32,0.00018082,2]
[363383875,1748711449242,-746.16,0.00018082,2]
[363383876,1748711449253,-779.61,0.00018082,2]
[363383877,1748711449264,-430.0,0.00018082,2]
[363383878,1748711449273,-824.29,0.00018082,2]
[363383879,1748711449283,-430.0,0.00018082,2]
[363383880,1748711449293,-503.82,0.00018082,2]
[363383881,1748711449302,-557.85,0.00018082,2]
[363383882,1748711449312,-430.0,0.00018082,2]
[363383883,1748711449322,-160.0,0.00018104,2]
[363383884,1748711449332,-430.0,0.00018105,2]
[363383885,1748711449341,-894.59,0.00018105,2]
[363383886,1748711449352,-430.0,0.00018105,2]
[363383887,1748711449362,-300.0,0.00018105,2]
[363383888,1748711449372,-430.0,0.00018105,2]
[363383889,1748711449381,-430.0,0.00018105,2]
[363383890,1748711449391,-430.0,0.00018105,2]
[363383891,1748711449401,-500.0,0.00018149,2]
[363383892,1748711449410,-229.80585427,0.00018169,2]
[363383893,1748711449420,-151.0,0.000182,2]
[363383894,1748711449430,-587.0,0.00018269,2]
[363383895,1748711449441,-1643.40161787,0.00018279,2]
[363383896,1748711449451,-973.41274582,0.00018349,2]
[363383897,1748711449462,-430.0,0.00018356,2]
[363383898,1748711449472,-430.0,0.00018356,2]
[363383899,1748711449481,-430.0,0.00018356,2]
[363383900,1748711449491,-430.0,0.00018356,2]
[363383901,1748711449501,-825.12,0.00018356,2]
[363383902,1748711449511,-430.0,0.00018356,2]
[363383903,1748711449521,-430.0,0.00018356,2]
[363383904,1748711449532,-430.0,0.00018356,2]
[363383905,1748711449541,-607.07,0.00018356,2]
[363383906,1748711449551,-665.76,0.00018356,2]
[363383907,1748711449560,-1495.35,0.00018356,2]
[363383908,1748711449569,-1808.07,0.00018356,2]
[363383909,1748711449579,-283.483007,0.00018356,2]
[363383910,1748711449588,-648.33,0.00018356,2]
[363383911,1748711449598,-609.11,0.00018356,2]
[363383912,1748711449608,-430.0,0.00018356,2]
[363383913,1748711449618,-1984.25,0.00018356,2]
[363383914,1748711449627,-430.0,0.00018356,2]
[363383915,1748711449637,-583.25,0.00018356,2]
[363383916,1748711449647,-430.0,0.00018356,2]
[363383917,1748711449658,-1734.02,0.00018356,2]
[363383918,1748711449668,-430.0,0.00018356,2]
[363383919,1748711449677,-430.0,0.00018356,2]
[363383920,1748711449686,-2098.4,0.00018356,2]
[363383921,1748711449696,-1048.11,0.00018356,2]
[363383922,1748711449705,-430.0,0.00018356,2]
[363383923,1748711449715,-512.67,0.00018356,2]
[363383924,1748711449728,-526.15,0.00018356,2]
[363383925,1748711449737,-430.0,0.00018356,2]
[363383926,1748711449747,-5017.28,0.00018356,2]
[363383927,1748711449756,-539.81,0.00018356,2]
[363383928,1748711449766,-1017.59,0.00018356,2]
[363383929,1748711449776,-745.59,0.00018356,2]
[363383930,1748711449786,-430.0,0.00018356,2]
[363383931,1748711449796,-2361.99,0.00018356,2]
[363383932,1748711449807,-430.0,0.00018356,2]
[363383933,1748711449817,-1807.64,0.00018356,2]
[363383934,1748711449828,-969.344175,0.00018356,2]
[363383935,1748711449838,-969.344175,0.00018356,2]
[363383936,1748711449847,-486.68046993,0.00018356,2]
[363383937,1748711449856,-154.4034213,0.00018356,2]
[363383938,1748711449867,-430.0,0.00018356,2]
[363383939,1748711449877,-430.0,0.00018356,2]
[363383940,1748711449887,-151.0,0.00018356,2]
[363383941,1748711449896,-430.0,0.00018356,2]
[363383942,1748711449907,-151.0,0.00018356,2]
[363383943,1748711449916,-430.0,0.00018356,2]
[363383944,1748711449926,-707.05,0.00018356,2]
[363383945,1748711449935,-430.0,0.00018356,2]
[363383946,1748711449944,-554.68,0.00018356,2]
[363383947,1748711449954,-430.0,0.00018356,2]
[363383948,1748711449964,-430.0,0.00018356,2]
[363383949,1748711449974,-430.0,0.00018356,2]
[363383950,1748711449984,-765.34,0.00018356,2]
[363383951,1748711449993,-430.0,0.00018356,2]
[363383952,1748711450003,-430.0,0.00018356,2]
[363383953,1748711450012,-1861.82,0.00018356,2]
[363383954,1748711450021,-183.01760006,0.00018356,2]
[363383955,1748711450031,-1278.09,0.00018356,2]
[363383956,1748711450041,-314.653901,0.00018356,2]
[363383957,1748711450050,-430.0,0.00018356,2]
[363383958,1748711450059,-1224.97,0.00018356,2]
[363383959,1748711450069,-314.653901,0.00018356,2]
[363383960,1748711450078,-537.5,0.00018356,2]
[363383961,1748711450087,-430.0,0.00018356,2]
[363383962,1748711450098,-430.0,0.00018356,2]
[363383963,1748711450108,-313.2,0.00018356,2]
[363383964,1748711450118,-450.32,0.00018356,2]
[363383965,1748711450127,-746.16,0.00018356,2]
[363383966,1748711450136,-779.61,0.00018356,2]
[363383967,1748711450146,-430.0,0.00018356,2]
[363383968,1748711450155,-824.29,0.00018356,2]
[363383969,1748711450166,-430.0,0.00018356,2]
[363383970,1748711450176,-503.82,0.00018356,2]
[363383971,1748711450185,-430.0,0.00018356,2]
[363383972,1748711450195,-151.0,0.00018356,2]
[363383973,1748711450205,-430.0,0.00018379,2]
[363383974,1748711450216,-894.59,0.00018379,2]
[363383975,1748711450225,-430.0,0.00018379,2]
[363383976,1748711450235,-430.0,0.00018379,2]
[363383977,1748711450245,-430.0,0.00018379,2]
[363383978,1748711450255,-430.0,0.00018379,2]
[363383979,1748711450265,-151.0,0.000184,2]
[363383980,1748711450275,-151.0,0.00018417,2]
[363383981,1748711450284,-151.0,0.00018417,2]
[363383982,1748711450293,-416.713516,0.00018417,2]
[363383983,1748711450303,-416.713516,0.00018417,2]
[363383984,1748711450313,-151.0,0.00018417,2]
[363383985,1748711450322,-1643.40161787,0.00018555,2]
[363383986,1748711450332,-430.0,0.0001863,2]
[363383987,1748711450342,-430.0,0.0001863,2]
[363383988,1748711450353,-430.0,0.0001863,2]
[363383989,1748711450362,-825.12,0.0001863,2]
[363383990,1748711450371,-430.0,0.0001863,2]
[363383991,1748711450380,-430.0,0.0001863,2]
[363383992,1748711450390,-430.0,0.0001863,2]
[363383993,1748711450399,-607.07,0.0001863,2]
[363383994,1748711450408,-665.76,0.0001863,2]
[363383995,1748711450418,-1495.35,0.0001863,2]
[363383996,1748711450428,-1808.07,0.0001863,2]
[363383997,1748711450438,-648.33,0.0001863,2]
[363383998,1748711450447,-609.11,0.0001863,2]
[363383999,1748711450456,-430.0,0.0001863,2]
[363384000,1748711450466,-1984.25,0.0001863,2]
[363384001,1748711450475,-583.25,0.0001863,2]
[363384002,1748711450484,-212.77,0.0001863,2]
[363384003,1748711450493,-430.0,0.0001863,2]
[363384004,1748711450503,-1734.02,0.0001863,2]
[363384005,1748711450512,-430.0,0.0001863,2]
[363384006,1748711450522,-430.0,0.0001863,2]
[363384007,1748711450532,-2098.4,0.0001863,2]
[363384008,1748711450542,-1048.11,0.0001863,2]
[363384009,1748711450552,-430.0,0.0001863,2]
[363384010,1748711450561,-512.67,0.0001863,2]
[363384011,1748711450570,-526.15,0.0001863,2]
[363384012,1748711450579,-430.0,0.0001863,2]
[363384013,1748711450591,-5017.28,0.0001863,2]
[363384014,1748711450601,-539.81,0.0001863,2]
[363384015,1748711450611,-209.695203,0.0001863,2]
[363384016,1748711450620,-1017.59,0.0001863,2]
[363384017,1748711450631,-209.695203,0.0001863,2]
[363384018,1748711450640,-745.59,0.0001863,2]
[363384019,1748711450651,-430.0,0.0001863,2]
[363384020,1748711450660,-2361.99,0.0001863,2]
[363384021,1748711450670,-430.0,0.0001863,2]
[363384022,1748711450679,-1807.64,0.0001863,2]
[363384023,1748711450688,-430.0,0.0001863,2]
[363384024,1748711450699,-430.0,0.0001863,2]
[363384025,1748711450709,-430.0,0.0001863,2]
[363384026,1748711450722,-430.0,0.0001863,2]
[363384027,1748711450734,-707.05,0.0001863,2]
[363384028,1748711450743,-430.0,0.0001863,2]
[363384029,1748711450752,-554.68,0.0001863,2]
[363384030,1748711450762,-430.0,0.0001863,2]
[363384031,1748711450771,-430.0,0.0001863,2]
[363384032,1748711450780,-430.0,0.0001863,2]
[363384033,1748711450790,-765.34,0.0001863,2]
[363384034,1748711450801,-430.0,0.0001863,2]
[363384035,1748711450810,-430.0,0.0001863,2]
[363384036,1748711450821,-1861.82,0.0001863,2]
[363384037,1748711450830,-1278.09,0.0001863,2]
[363384038,1748711450840,-430.0,0.0001863,2]
[363384039,1748711450849,-1224.97,0.0001863,2]
[363384040,1748711450860,-537.5,0.0001863,2]
[363384041,1748711450869,-267.88,0.0001863,2]
[363384042,1748711450879,-430.0,0.0001863,2]
[363384043,1748711450890,-151.0,0.0001863,2]
[363384044,1748711450899,-450.32,0.0001863,2]
[363384045,1748711450909,-746.16,0.0001863,2]
[363384046,1748711450918,-779.61,0.0001863,2]
[363384047,1748711450929,-430.0,0.0001863,2]
[363384048,1748711450938,-824.29,0.0001863,2]
[363384049,1748711450948,-430.0,0.0001863,2]
[363384050,1748711450957,-503.82,0.0001863,2]
[363384051,1748711450968,-430.0,0.0001863,2]
[363384052,1748711450978,-151.0,0.00018653,2]
[363384053,1748711450988,-430.0,0.00018653,2]
[363384054,1748711450999,-894.59,0.00018653,2]
[363384055,1748711451009,-430.0,0.00018653,2]
[363384056,1748711451018,-430.0,0.00018653,2]
[363384057,1748711451027,-430.0,0.00018653,2]
[363384058,1748711451037,-587.0,0.00018661,2]
[363384059,1748711451046,-151.0,0.000187,2]
[363384060,1748711451055,-151.0,0.000188,2]
[363384061,1748711451065,-166.06456614,0.00018804,2]
[363384062,1748711451075,-1643.40161787,0.00018831,2]
[363384063,1748711451084,-2351.0,0.00018849,2]
[363384064,1748711451094,-1733.74534352,0.000189,2]
[363384065,1748711451106,-430.0,0.00018904,2]
[363384066,1748711451116,-430.0,0.00018904,2]
[363384067,1748711451125,-430.0,0.00018904,2]
[363384068,1748711451135,-825.12,0.00018904,2]
[363384069,1748711451249,-430.0,0.00018904,2]
[363384070,1748711451258,-151.0,0.00018904,2]
[363384071,1748711451267,-627.223156,0.00018904,2]
[363384072,1748711451277,-627.223156,0.00018904,2]
[363384073,1748711451286,-151.0,0.00018904,2]
[363384074,1748711451295,-151.0,0.00018904,2]
[363384075,1748711451306,-151.0,0.00018904,2]
[363384076,1748711451316,-151.0,0.00018904,2]
[363384077,1748711451325,-430.0,0.00018904,2]
[363384078,1748711451335,-430.0,0.00018904,2]
[363384079,1748711451345,-151.0,0.00018904,2]
[363384080,1748711451355,-607.07,0.00018904,2]
[363384081,1748711451364,-151.0,0.00018904,2]
[363384082,1748711451373,-665.76,0.00018904,2]
[363384083,1748711451383,-1495.35,0.00018904,2]
[363384084,1748711451394,-1808.07,0.00018904,2]
[363384085,1748711451403,-648.33,0.00018904,2]
[363384086,1748711451412,-609.11,0.00018904,2]
[363384087,1748711451422,-430.0,0.00018904,2]
[363384088,1748711451431,-1984.25,0.00018904,2]
[363384089,1748711451441,-583.25,0.00018904,2]
[363384090,1748711451450,-333.02568103,0.00018904,2]
[363384091,1748711451460,-1734.02,0.00018904,2]
[363384092,1748711451469,-430.0,0.00018904,2]
[363384093,1748711451478,-430.0,0.00018904,2]
[363384094,1748711451488,-2098.4,0.00018904,2]
[363384095,1748711451498,-1048.11,0.00018904,2]
[363384096,1748711451507,-430.0,0.00018904,2]
[363384097,1748711451516,-512.67,0.00018904,2]
[363384098,1748711451526,-526.15,0.00018904,2]
[363384099,1748711451535,-430.0,0.00018904,2]
[363384100,1748711451545,-5017.28,0.00018904,2]
[363384101,1748711451555,-539.81,0.00018904,2]
[363384102,1748711451564,-1017.59,0.00018904,2]
[363384103,1748711451574,-745.59,0.00018904,2]
[363384104,1748711451584,-552.02,0.00018904,2]
[363384105,1748711451594,-2361.99,0.00018904,2]
[363384106,1748711451604,-430.0,0.00018904,2]
[363384107,1748711451614,-1807.64,0.00018904,2]
[363384108,1748711451623,-969.344175,0.00018904,2]
[363384109,1748711451633,-969.344175,0.00018904,2]
[363384110,1748711451642,-430.0,0.00018904,2]
[363384111,1748711451651,-430.0,0.00018904,2]
[363384112,1748711451660,-430.0,0.00018904,2]
[363384113,1748711451670,-430.0,0.00018904,2]
[363384114,1748711451680,-707.05,0.00018904,2]
[363384115,1748711451689,-430.0,0.00018904,2]
[363384116,1748711451699,-554.68,0.00018904,2]
[363384117,1748711451708,-430.0,0.00018904,2]
[363384118,1748711451719,-430.0,0.00018904,2]
[363384119,1748711451731,-430.0,0.00018904,2]
[363384120,1748711451740,-765.34,0.00018904,2]
[363384121,1748711451749,-430.0,0.00018904,2]
[363384122,1748711451759,-430.0,0.00018904,2]
[363384123,1748711451769,-1861.82,0.00018904,2]
[363384124,1748711451778,-1278.09,0.00018904,2]
[363384125,1748711451788,-314.653901,0.00018904,2]
[363384126,1748711451798,-430.0,0.00018904,2]
[363384127,1748711451807,-314.653901,0.00018904,2]
[363384128,1748711451816,-1224.97,0.00018904,2]
[363384129,1748711451826,-537.5,0.00018904,2]
[363384130,1748711451835,-275.938584,0.00018904,2]
[363384131,1748711451845,-275.938584,0.00018904,2]
[363384132,1748711451857,-430.0,0.00018904,2]
[363384133,1748711451866,-450.32,0.00018904,2]
[363384134,1748711451876,-746.16,0.00018904,2]
[363384135,1748711451885,-779.61,0.00018904,2]
[363384136,1748711451895,-430.0,0.00018904,2]
[363384137,1748711451905,-824.29,0.00018904,2]
[363384138,1748711451914,-430.0,0.00018904,2]
[363384139,1748711451923,-503.82,0.00018904,2]
[363384140,1748711451932,-430.0,0.00018904,2]
[363384141,1748711451942,-430.0,0.00018927,2]
[363384142,1748711451951,-894.59,0.00018927,2]
[363384143,1748711451960,-430.0,0.00018927,2]
[363384144,1748711451970,-430.0,0.00018927,2]
[363384145,1748711451979,-430.0,0.00018927,2]
[363384146,1748711451988,-5838.59,0.00018986,2]
[363384147,1748711451998,-3000.0,0.00019,2]
[363384148,1748711452007,-3000.0,0.0001901,2]
[363384149,1748711452016,-973.41274582,0.00019019,2]
[363384150,1748711452026,-3000.0,0.0001902,2]
[363384151,1748711452035,-151.0,0.0001902,2]
[363384152,1748711452044,-200.654444,0.0001902,2]
[363384153,1748711452054,-151.0,0.0001902,2]
[363384154,1748711452063,-3000.0,0.0001903,2]
[363384155,1748711452073,-3000.0,0.0001904,2]
[363384156,1748711452082,-3000.0,0.0001905,2]
[363384157,1748711452093,-3000.0,0.0001906,2]
[363384158,1748711452105,-151.0,0.0001906,2]
[363384159,1748711452114,-151.0,0.0001906,2]
[363384160,1748711452124,-3000.0,0.0001907,2]
[363384161,1748711452134,-3000.0,0.0001908,2]
[363384162,1748711452143,-3000.0,0.0001909,2]
[363384163,1748711452153,-151.0,0.0001909,2]
[363384164,1748711452163,-151.0,0.0001909,2]
[363384165,1748711452173,-151.0,0.0001909,2]
[363384166,1748711452182,-177.534798,0.0001909,2]
[363384167,1748711452192,-177.534798,0.0001909,2]
[363384168,1748711452201,-209.695203,0.0001909,2]
[363384169,1748711452210,-209.695203,0.0001909,2]
[363384170,1748711452220,-3000.0,0.000191,2]
[363384171,1748711452229,-151.0,0.000191,2]
[363384172,1748711452239,-1643.40161787,0.00019107,2]
[363384173,1748711452248,-500.0,0.0001911,2]
[363384174,1748711452257,-500.0,0.0001911,2]
[363384175,1748711452267,-500.0,0.0001911,2]
[363384176,1748711452277,-3000.0,0.0001911,2]
[363384177,1748711452286,-3000.0,0.0001912,2]
[363384178,1748711452296,-3000.0,0.0001913,2]
[363384179,1748711452306,-3000.0,0.0001914,2]
[363384180,1748711452316,-3000.0,0.0001915,2]
[363384181,1748711452325,-3000.0,0.0001916,2]
[363384182,1748711452334,-151.0,0.0001916,2]
[363384183,1748711452343,-3000.0,0.0001917,2]
[363384184,1748711452354,-385.36366285,0.00019178,2]
[363384185,1748711452364,-430.0,0.00019178,2]
[363384186,1748711452373,-430.0,0.00019178,2]
[363384187,1748711452383,-430.0,0.00019178,2]
[363384188,1748711452393,-825.12,0.00019178,2]
[363384189,1748711452403,-430.0,0.00019178,2]
[363384190,1748711452413,-151.0,0.00019178,2]
[363384191,1748711452422,-151.0,0.00019178,2]
[363384192,1748711452431,-416.713516,0.00019178,2]
[363384193,1748711452442,-416.713516,0.00019178,2]
[363384194,1748711452451,-151.0,0.00019178,2]
[363384195,1748711452461,-430.0,0.00019178,2]
[363384196,1748711452471,-430.0,0.00019178,2]
[363384197,1748711452480,-151.0,0.00019178,2]
[363384198,1748711452489,-607.07,0.00019178,2]
[363384199,1748711452499,-17.33857349,0.00019178,2]
[363384200,1748711453598,157.39788135,6.8e-07,2]
[363384201,1748711454883,-5000.0,0.00016273,2]
[363384202,1748711454894,-163.13211168,0.00016338,2]
[363384203,1748711454904,-446.90921423,0.00016437,2]
[363384204,1748711454913,-500.0,0.00016437,2]
[363384205,1748711454921,-500.0,0.00016437,2]
[363384206,1748711454930,-500.0,0.00016437,2]
[363384207,1748711454939,-500.0,0.00016437,2]
[363384208,1748711454948,-500.0,0.00016437,2]
[363384209,1748711454957,-500.0,0.00016437,2]
[363384210,1748711454966,-324.89905809,0.00016437,2]
[363384211,1748711454976,-500.0,0.00016437,2]
[363384212,1748711454986,-500.0,0.00016437,2]
[363384213,1748711454997,-500.0,0.00016437,2]
[363384214,1748711455007,-500.0,0.00016437,2]
[363384215,1748711455016,-500.0,0.00016437,2]
[363384216,1748711455026,-500.0,0.00016437,2]
[363384217,1748711455037,-500.0,0.00016437,2]
[363384218,1748711455047,-430.0,0.00016438,2]
[363384219,1748711455056,-151.0,0.00016438,2]
[363384220,1748711455066,-430.0,0.00016438,2]
[363384221,1748711455076,-401.06810703,0.00016438,2]
[363384222,1748711455086,-430.0,0.00016712,2]
[363384223,1748711455095,-430.0,0.00016712,2]
[363384224,1748711455106,-430.0,0.00016712,2]
[363384225,1748711455117,-430.0,0.00016986,2]
[363384226,1748711455126,-151.0,0.00016986,2]
[363384227,1748711455136,-430.0,0.00016986,2]